bitfinex/quotes_ETHUSD_20250813
["timestamp","ask_amount","ask_price","bid_price","bid_amount"]
[1755078217906,1e-08,4648.7,4648.4,0.1072]
[1755078218210,1e-08,4648.7,4648.6,2.1511853]
[1755078218413,1e-08,4648.7,4648.5,5.51519726]
[1755078218582,1e-08,4648.7,4648.6,2.1511853]
[1755078218786,1.12890001,4648.7,4648.6,3.364]
[1755078219219,0.55,4648.6,4645.8,0.2164]
[1755078219522,0.1072,4647.5,4646.9,5.155]
[1755078219684,0.1072,4647.5,4646.9,8.519]
[1755078219888,0.1072,4647.7,4646.9,6.23301023]
[1755078220137,0.439,4648.6,4647.9,0.1072]
[1755078220295,0.5462,4648.6,4648.0,3.364]
[1755078220499,0.1072,4648.6,4648.1,3.364]
[1755078220798,1e-08,4648.7,4648.2,0.1072]
[1755078221581,1.1289,4648.6,4648.2,0.1072]
[1755078221814,1.1289,4648.5,4648.2,0.1072]
[1755078222020,1.1289,4648.5,4647.0,3.0]
[1755078222327,0.5462,4648.4,4647.8,0.1072]
[1755078222537,0.5462,4648.4,4647.9,3.364]
[1755078222734,0.1072,4648.4,4647.9,3.364]
[1755078222941,1.1289,4648.3,4647.9,3.364]
[1755078223535,0.6899,4648.3,4647.9,3.364]
[1755078224608,1.1289,4648.3,4647.9,3.364]
[1755078224805,1.1289,4648.2,4647.8,0.1072]
[1755078225007,1.1289,4648.1,4648.0,3.364]
[1755078225218,1.1289,4648.1,4648.0,3.363]
[1755078225416,1.2361,4648.1,4648.0,3.363]
[1755078225637,0.1072,4648.1,4648.0,3.363]
[1755078225843,0.68990001,4648.7,4648.0,3.363]
[1755078226058,1e-08,4648.7,4648.0,4.4384]
[1755078226538,1e-08,4648.7,4648.5,0.1072]
[1755078226725,1e-08,4648.7,4648.6,3.363]
[1755078228712,1e-08,4648.7,4648.6,5.5141853]
[1755078229609,1e-08,4648.7,4648.6,8.518]
[1755078229829,1e-08,4648.7,4648.6,5.155]
[1755078230033,1e-08,4648.7,4648.6,8.518]
[1755078231138,1e-08,4648.7,4648.6,10.6691853]
[1755078232866,1e-08,4648.7,4648.6,8.518]
[1755078234268,1e-08,4648.7,4648.6,10.6691853]
[1755078234431,1e-08,4648.7,4648.6,7.3061853]
[1755078234635,1e-08,4648.7,4648.6,10.6691853]
[1755078237260,1e-08,4648.7,4648.6,12.43305088]
[1755078237798,1e-08,4648.7,4648.6,12.83485088]
[1755078239282,1e-08,4648.7,4648.6,12.43305088]
[1755078241306,1e-08,4648.7,4648.6,15.43305088]
[1755078241697,1e-08,4648.7,4648.6,6.44395088]
[1755078241867,1e-08,4648.7,4648.6,8.5131853]
[1755078242568,1e-08,4648.7,4648.6,5.5131853]
[1755078242778,1e-08,4648.7,4648.6,2.1511853]
[1755078242990,1e-08,4648.7,4648.6,5.5131853]
[1755078244492,1e-08,4648.7,4648.6,5.5121853]
[1755078244914,1.18560001,4648.7,4648.6,5.5121853]
[1755078245119,1.18560001,4648.7,4648.6,2.1511853]
[1755078245419,1.18560001,4648.7,4648.6,9.9851853]
[1755078245600,1.18560001,4648.7,4648.6,13.3461853]
[1755078246200,1e-08,4648.7,4648.6,13.3461853]
[1755078246609,1e-08,4648.7,4648.6,18.01385015]
[1755078246836,0.002,4649.2,4648.7,5.15113902]
[1755078247035,0.002,4649.2,4649.1,2.15095394]
[1755078249121,1.1876,4649.2,4649.1,0.1072]
[1755078249326,1.1876,4649.2,4649.1,3.4682]
[1755078250402,1.1876,4649.2,4649.1,3.361]
[1755078250719,1.30636,4649.2,4649.1,3.361]
[1755078251634,1.1876,4649.2,4649.1,3.361]
[1755078252302,1.1876,4649.2,4648.9,0.1072]
[1755078252521,1.1856,4649.1,4649.0,3.36]
[1755078252746,1.1856,4649.1,4648.9,0.1072]
[1755078253051,0.002,4649.2,4649.0,3.36]
[1755078253455,0.002,4649.2,4648.9,0.1072]
[1755078253638,0.002,4649.2,4649.1,3.36]
[1755078254236,1.1876,4649.2,4649.1,3.36]
[1755078254549,1.31708,4649.2,4648.9,0.1072]
[1755078254752,0.13148,4649.2,4649.0,3.36]
[1755078254953,1.1856,4649.1,4649.0,3.36]
[1755078255549,1.1856,4649.1,4649.0,8.514]
[1755078256760,1.1856,4649.1,4649.0,5.154]
[1755078256923,1.1856,4649.1,4649.0,8.514]
[1755078259127,1.1856,4649.1,4649.0,5.154]
[1755078259336,1.1856,4649.1,4649.0,8.514]
[1755078259337,1.31508,4649.1,4649.0,8.514]
[1755078259938,1.31508,4649.1,4649.0,5.154]
[1755078260347,1.1856,4649.1,4649.0,5.154]
[1755078261236,1.1856,4649.1,4649.0,8.514]
[1755078261441,1.1856,4649.1,4649.0,5.154]
[1755078261647,1.1856,4649.1,4648.6,2.25837666]
[1755078261844,0.4475,4649.1,4648.6,0.1072]
[1755078262160,1.1856,4649.0,4648.6,0.1072]
[1755078262662,0.4475,4649.0,4648.7,3.359]
[1755078262833,1.1856,4648.9,4648.7,3.359]
[1755078265471,1.1856,4648.9,4648.8,5.154]
[1755078266662,0.7381,4648.9,4648.8,5.154]
[1755078266967,1.2948,4649.2,4648.8,5.154]
[1755078267180,0.1092,4649.2,4648.8,5.154]
[1755078267363,1.1856,4649.1,4648.8,5.154]
[1755078267572,1.1856,4649.0,4648.8,5.154]
[1755078267958,0.7381,4648.9,4648.8,5.154]
[1755078270494,1.2042,4648.9,4648.8,5.154]
[1755078273804,1.2042,4648.9,4648.8,8.512]
[1755078276801,1.2042,4648.9,4648.8,5.154]
[1755078277122,1.2042,4648.9,4648.8,8.512]
[1755078279504,1.2042,4648.9,4648.8,5.154]
[1755078279703,1.2042,4648.9,4648.8,8.511]
[1755078280628,0.7381,4648.9,4648.8,8.511]
[1755078280993,1.95538655,4648.9,4648.8,5.154]
[1755078281326,7.08378891,4648.9,4648.8,5.154]
[1755078281628,0.55,4648.8,4648.6,0.001]
[1755078281829,1.7299,4648.8,4648.7,5.154]
[1755078282029,1.93103863,4648.8,4648.6,0.001]
[1755078282238,0.20113863,4648.7,4648.6,0.001]
[1755078282542,2.01533412,4648.7,4648.6,3.358]
[1755078282840,0.55,4648.6,4648.2,0.001]
[1755078283007,0.55,4648.4,4648.2,0.001]
[1755078283208,0.75100534,4648.4,4648.2,0.001]
[1755078283404,1.7299,4648.3,4648.2,0.001]
[1755078283643,2.47890262,4648.3,4648.2,0.001]
[1755078283849,2.47890262,4648.3,4648.2,3.358]
[1755078284350,2.47890262,4648.3,4648.2,3.357]
[1755078285139,2.47890262,4648.3,4648.2,0.001]
[1755078285339,2.47890262,4648.3,4648.2,5.156]
[1755078285837,2.47890262,4648.3,4648.2,8.512]
[1755078286218,5.58674158,4648.3,4648.2,8.512]
[1755078286749,5.58674158,4648.3,4648.2,5.156]
[1755078286907,5.58674158,4648.3,4648.2,8.512]
[1755078287412,5.47890262,4648.3,4648.2,8.512]
[1755078287616,5.47890262,4648.3,4648.2,8.511]
[1755078289740,5.47890262,4648.3,4648.2,5.155]
[1755078289917,5.47890262,4648.3,4648.2,8.511]
[1755078290123,3.20091209,4648.3,4648.2,8.511]
[1755078290325,1.1799,4649.0,4648.2,8.511]
[1755078290626,0.20039841,4649.1,4648.2,8.511]
[1755078290824,3.0,4648.8,4648.2,5.155]
[1755078291017,0.55,4648.6,4648.2,5.155]
[1755078291233,0.55,4648.4,4648.3,3.356]
[1755078291418,1.7299,4648.4,4648.3,3.356]
[1755078291741,0.6572,4648.3,4648.2,5.155]
[1755078292048,4.8371,4648.3,4648.2,8.511]
[1755078292631,4.8371,4648.3,4648.2,5.156]
[1755078292836,7.14094019,4648.3,4648.2,5.156]
[1755078293835,7.14094019,4648.3,4648.2,8.512]
[1755078294023,7.14094019,4648.3,4648.2,3.356]
[1755078294347,7.14090662,4648.3,4648.1,0.001]
[1755078294514,1.38025789,4648.2,4648.1,0.001]
[1755078294719,6.58681357,4648.2,4648.1,0.001]
[1755078295442,6.58681357,4648.2,4648.1,5.157]
[1755078295642,6.58681357,4648.2,4648.1,8.512]
[1755078296016,7.13681357,4648.2,4648.1,8.512]
[1755078296521,7.13681357,4648.2,4648.1,5.156]
[1755078296721,7.13681357,4648.2,4648.1,8.511]
[1755078297048,7.13681357,4648.2,4648.1,5.156]
[1755078297349,7.13681357,4648.2,4648.1,8.511]
[1755078297731,7.29971386,4648.2,4648.1,8.511]
[1755078297945,12.26315818,4648.2,4648.1,5.156]
[1755078298164,12.72473484,4648.2,4648.1,8.511]
[1755078298328,12.72471646,4648.2,4648.1,8.511]
[1755078298515,0.55,4647.9,4647.7,0.001]
[1755078298744,19.62659729,4647.8,4647.7,0.001]
[1755078299053,21.0068368,4647.8,4647.7,0.001]
[1755078299971,21.0068368,4647.8,4647.7,3.356]
[1755078300522,3.55,4647.7,4647.5,0.001]
[1755078300723,6.06409519,4647.6,4647.5,0.001]
[1755078300956,3.1072,4647.6,4647.5,0.001]
[1755078301142,3.6572,4647.6,4647.5,0.001]
[1755078301453,4.8481,4647.6,4647.5,0.001]
[1755078301851,5.04837822,4647.6,4647.5,0.001]
[1755078302155,3.85747822,4647.6,4647.5,3.356]
[1755078302362,3.1072,4647.6,4647.5,3.356]
[1755078302572,3.1072,4647.6,4647.5,3.8259]
[1755078302855,0.1072,4647.6,4647.5,3.8259]
[1755078303064,0.454,4649.3,4647.5,4.1949]
[1755078303230,0.65424466,4649.3,4647.5,3.356]
[1755078303560,0.20024466,4649.3,4647.6,0.8389]
[1755078303741,0.20024466,4649.3,4647.8,2.15151956]
[1755078303920,0.002,4649.4,4648.1,0.1072]
[1755078303921,0.1072,4648.7,4648.1,0.1072]
[1755078304354,0.1072,4648.7,4648.2,0.8389]
[1755078304540,0.1072,4648.7,4648.3,4.1939]
[1755078304741,0.1072,4648.7,4648.3,3.355]
[1755078304941,0.1072,4648.7,4648.4,0.8389]
[1755078305368,0.1072,4648.7,4648.3,3.355]
[1755078305369,0.1072,4648.7,4648.5,5.157]
[1755078305580,0.1072,4648.7,4648.5,5.9959]
[1755078305782,0.1072,4648.7,4648.5,5.526]
[1755078306077,0.1072,4648.7,4648.6,5.157]
[1755078306237,0.1072,4648.7,4648.6,8.512]
[1755078307343,0.1072,4648.7,4648.6,5.157]
[1755078307549,0.1072,4648.7,4648.6,8.511]
[1755078308827,0.5612,4648.7,4648.6,8.511]
[1755078308945,0.1072,4648.7,4648.6,5.157]
[1755078309143,0.1072,4648.7,4648.6,8.511]
[1755078309777,0.5612,4648.7,4648.6,8.511]
[1755078310182,1.8481,4648.7,4648.6,8.511]
[1755078310344,2.23362217,4648.7,4648.6,5.157]
[1755078310864,2.23362217,4648.7,4648.6,5.156]
[1755078311951,2.23371311,4648.7,4648.6,5.156]
[1755078312179,2.23371311,4648.7,4648.6,8.509]
[1755078312483,0.55,4648.6,4647.7,0.001]
[1755078312779,0.55,4648.4,4647.8,3.353]
[1755078313073,0.1072,4647.8,4647.7,0.001]
[1755078313849,0.22337131,4648.5,4647.7,0.0022]
[1755078314048,0.1072,4648.0,4647.7,0.0022]
[1755078314245,0.1072,4648.0,4647.8,3.353]
[1755078315947,0.1072,4648.0,4647.9,5.156]
[1755078317361,1.2981,4648.0,4647.9,8.509]
[1755078317578,1.2981,4648.0,4647.9,5.156]
[1755078317775,0.23701,4648.0,4647.9,5.156]
[1755078318078,0.1072,4648.0,4647.7,0.001]
[1755078319153,0.1072,4648.0,4647.8,3.352]
[1755078319355,0.1072,4648.0,4647.9,3.352]
[1755078320268,0.1072,4648.0,4647.7,0.001]
[1755078323681,0.454,4647.9,4647.7,0.001]
[1755078324262,0.454,4647.9,4647.8,3.351]
[1755078324489,0.454,4647.9,4647.7,0.001]
[1755078325491,0.454,4647.9,4647.8,5.156]
[1755078326696,1.87071,4647.9,4647.8,5.156]
[1755078326852,1.87071,4647.9,4647.8,8.507]
[1755078327051,1.87071,4647.9,4647.8,5.156]
[1755078327247,0.55,4647.8,4647.7,0.001]
[1755078327492,1.94157297,4647.8,4647.7,8.508]
[1755078327650,2.15943127,4647.8,4647.7,5.156]
[1755078327848,1.9587583,4647.8,4647.7,5.156]
[1755078328095,2.26666291,4647.8,4647.7,5.156]
[1755078328257,1.07576291,4647.8,4647.7,5.156]
[1755078328585,0.1072,4647.8,4647.7,5.156]
[1755078328774,0.1072,4647.9,4647.7,5.156]
[1755078329077,0.456,4648.7,4647.7,5.156]
[1755078329078,0.1072,4648.1,4647.7,5.156]
[1755078329490,0.1072,4648.1,4647.7,5.1572]
[1755078329855,0.1072,4648.1,4647.8,3.35]
[1755078331083,0.1072,4648.1,4647.9,3.35]
[1755078331390,0.4572,4648.0,4647.9,3.35]
[1755078332491,0.4572,4648.0,4647.7,5.156]
[1755078332794,0.4572,4648.0,4647.8,3.35]
[1755078333287,0.4572,4648.0,4647.9,3.35]
[1755078333490,0.1072,4648.1,4647.7,5.156]
[1755078334263,0.1072,4648.1,4648.0,2.15146299]
[1755078334463,0.002,4648.7,4648.0,0.1072]
[1755078334464,0.1092,4648.7,4648.0,0.1072]
[1755078334662,0.1092,4648.7,4648.1,2.1513886]
[1755078335124,0.1092,4648.7,4647.7,5.88696854]
[1755078335125,0.002,4648.7,4648.6,0.1072]
[1755078335509,0.002,4648.7,4648.6,3.4562]
[1755078335678,0.002,4648.7,4648.4,2.681]
[1755078335880,0.1072,4648.5,4648.0,2.15145378]
[1755078336196,0.002,4648.7,4648.3,0.1072]
[1755078337900,0.002,4648.7,4648.4,3.349]
[1755078338880,0.002,4648.7,4648.6,0.1072]
[1755078344879,0.6605,4648.7,4648.6,3.347]
[1755078345085,17.1005871,4648.7,4648.6,3.347]
[1755078345280,18.91824581,4648.7,4648.6,3.347]
[1755078345709,2.93535871,4648.7,4648.6,3.347]
[1755078345911,1.2249,4648.7,4647.9,0.1072]
[1755078346208,1.1157,4648.6,4647.9,0.1072]
[1755078347316,1.1157,4648.6,4648.0,3.347]
[1755078348311,1.1157,4648.5,4648.1,3.347]
[1755078348509,0.1072,4648.3,4647.8,0.001]
[1755078348708,1.1157,4648.2,4647.8,0.001]
[1755078349194,1.1157,4648.1,4647.8,0.001]
[1755078349810,1.2229,4648.0,4647.8,0.001]
[1755078350011,1.2229,4648.0,4647.9,3.347]
[1755078350182,1.2229,4648.0,4647.8,0.001]
[1755078350385,1.1157,4647.9,4647.8,0.001]
[1755078351825,1.1157,4647.9,4647.8,3.348]
[1755078351984,1.1157,4647.9,4647.7,7.837]
[1755078352189,0.4572,4647.8,4647.7,7.837]
[1755078352890,0.1072,4648.0,4647.7,7.837]
[1755078353092,1.2229,4648.0,4647.7,7.837]
[1755078353829,1.2229,4648.0,4647.8,3.346]
[1755078356088,0.4572,4647.9,4647.8,3.346]
[1755078356292,1.1157,4647.9,4647.8,3.346]
[1755078356891,1.1157,4647.9,4647.7,7.837]
[1755078357121,0.6585,4647.9,4647.8,5.156]
[1755078357321,0.4572,4647.8,4647.3,2.25998292]
[1755078357520,0.4572,4647.8,4647.6,5.156]
[1755078357723,0.4572,4647.8,4647.7,5.156]
[1755078357919,0.4572,4647.8,4647.3,2.25998292]
[1755078358123,0.6585,4647.9,4647.3,0.1082]
[1755078358796,0.6585,4647.9,4647.6,3.345]
[1755078358996,1.1157,4647.9,4647.3,0.1082]
[1755078359504,1.1157,4647.9,4647.3,2.25995222]
[1755078360016,1.1157,4647.9,4647.4,2.15273283]
[1755078360325,1.1157,4647.9,4647.4,0.001]
[1755078360734,0.4623,4647.8,4647.4,0.001]
[1755078361023,0.55,4647.6,4647.4,0.001]
[1755078361204,0.6572,4647.6,4647.4,0.001]
[1755078361391,4.7822,4647.6,4647.5,3.346]
[1755078361593,4.7822,4647.6,4647.4,0.001]
[1755078361594,1.7822,4647.6,4647.4,0.001]
[1755078361830,1.125,4647.5,4647.4,0.001]
[1755078362036,1.85322,4647.5,4647.4,0.001]
[1755078362196,5.0541119,4647.5,4647.4,0.001]
[1755078362396,2.0541119,4647.5,4647.4,0.001]
[1755078363493,2.0541119,4647.5,4647.4,3.346]
[1755078364131,1.85322,4647.5,4647.4,3.346]
[1755078364334,2.05389393,4647.5,4647.4,3.346]
[1755078364496,2.05389393,4647.5,4647.4,0.001]
[1755078364702,2.05389393,4647.5,4647.4,3.345]
[1755078364898,5.05389393,4647.5,4647.4,0.001]
[1755078365100,5.05389393,4647.5,4647.4,3.345]
[1755078365419,5.05389393,4647.5,4647.4,8.501]
[1755078365799,5.05389393,4647.5,4647.4,5.156]
[1755078366029,5.05389393,4647.5,4647.4,8.5]
[1755078366224,5.05389393,4647.5,4647.4,5.156]
[1755078366433,5.05389393,4647.5,4647.4,8.5]
[1755078366633,5.05389393,4647.5,4647.4,5.157]
[1755078366849,5.05368448,4647.5,4647.4,5.157]
[1755078367133,0.55,4647.4,4647.3,0.001]
[1755078367330,3.98983951,4647.4,4647.3,0.001]
[1755078368332,22.97272661,4647.4,4647.3,0.001]
[1755078368500,22.97272661,4647.4,4647.3,3.345]
[1755078369422,22.97272661,4647.4,4647.3,0.001]
[1755078369924,22.97272661,4647.4,4647.3,3.345]
[1755078369925,30.14272661,4647.4,4647.3,3.345]
[1755078370248,3.55,4647.3,4647.2,0.001]
[1755078370408,13.12701803,4647.3,4647.2,0.001]
[1755078370610,14.25201803,4647.3,4647.2,0.001]
[1755078370821,14.35921803,4647.3,4647.2,0.001]
[1755078372118,14.35921803,4647.3,4647.2,3.345]
[1755078372742,14.35921803,4647.3,4647.2,0.001]
[1755078372927,14.35921803,4647.3,4647.2,2.038]
[1755078373238,0.55,4647.2,4647.1,0.001]
[1755078373442,9.6678805,4647.2,4647.1,0.001]
[1755078373612,13.32993123,4647.2,4647.1,1.874]
[1755078373810,3.55,4647.1,4646.5,0.001]
[1755078374111,5.33699487,4647.1,4646.5,0.001]
[1755078374329,7.54355055,4647.1,4646.5,0.001]
[1755078375434,7.54355055,4647.1,4647.0,5.159]
[1755078375628,7.54355055,4647.1,4646.5,0.001]
[1755078375841,5.75655568,4647.1,4647.0,8.501]
[1755078376034,0.55,4647.0,4646.5,0.001]
[1755078376234,0.55,4647.0,4646.9,5.159]
[1755078376235,5.12521177,4647.0,4646.9,5.159]
[1755078376538,6.25021177,4647.0,4646.9,5.158]
[1755078377130,0.55,4646.9,4646.5,0.001]
[1755078377340,22.14815525,4646.9,4646.5,0.001]
[1755078377643,21.77580879,4646.9,4646.5,0.001]
[1755078378245,21.77580879,4646.9,4646.8,3.344]
[1755078378627,28.94580879,4646.9,4646.8,3.344]
[1755078379546,12.96292169,4646.9,4646.8,3.344]
[1755078379743,12.96292169,4646.9,4646.8,0.001]
[1755078379744,28.94580879,4646.9,4646.8,0.001]
[1755078380179,28.94580879,4646.9,4646.8,3.344]
[1755078380446,3.55,4646.8,4646.5,0.001]
[1755078380645,3.55,4646.8,4646.7,2.053]
[1755078380646,5.80614865,4646.8,4646.7,2.053]
[1755078380838,5.80614865,4646.8,4646.5,0.001]
[1755078381042,1.87526815,4646.7,4646.5,0.001]
[1755078382547,1.675,4646.7,4646.5,0.001]
[1755078382722,1.87523829,4646.7,4646.6,3.343]
[1755078382930,7.08179397,4646.7,4646.6,3.343]
[1755078383315,7.08182729,4646.7,4646.6,3.343]
[1755078384540,14.25182729,4646.7,4646.6,3.343]
[1755078385053,14.25188527,4646.7,4646.6,3.343]
[1755078385346,14.25188527,4646.7,4646.6,8.501]
[1755078385750,3.55,4646.6,4646.5,0.001]
[1755078385935,6.25027321,4646.6,4646.5,5.159]
[1755078387354,7.54027321,4646.6,4646.5,5.159]
[1755078387682,6.25027321,4646.6,4646.5,8.501]
[1755078388435,6.71263241,4646.6,4646.5,8.501]
[1755078390447,13.88263241,4646.6,4646.5,8.501]
[1755078390825,13.88263241,4646.6,4646.5,5.158]
[1755078391752,13.68230282,4646.6,4646.5,5.158]
[1755078391952,13.88325224,4646.6,4646.5,5.158]
[1755078392531,13.88327541,4646.6,4646.5,8.499]
[1755078394166,13.88327541,4646.6,4646.5,5.158]
[1755078394361,13.88332895,4646.6,4646.5,5.158]
[1755078394658,13.88332895,4646.6,4646.5,8.498]
[1755078395029,13.68230282,4646.6,4646.5,8.498]
[1755078395226,13.88337382,4646.6,4646.5,8.498]
[1755078395852,13.88337382,4646.6,4646.5,5.158]
[1755078397590,13.88337382,4646.6,4646.5,8.498]
[1755078397785,13.88337382,4646.6,4646.5,5.158]
[1755078399541,13.88337382,4646.6,4646.5,8.497]
[1755078399742,13.88337382,4646.6,4646.4,0.001]
[1755078400068,6.36058374,4646.5,4646.4,0.001]
[1755078401140,6.15951274,4646.5,4646.4,0.001]
[1755078401338,6.36082297,4646.5,4646.4,0.001]
[1755078401738,6.36082297,4646.5,4646.4,3.34]
[1755078401937,0.55,4646.4,4645.7,0.001]
[1755078402169,3.15812856,4646.4,4645.7,0.001]
[1755078402379,9.20662856,4646.4,4645.7,0.001]
[1755078402574,10.92138886,4646.4,4645.7,0.001]
[1755078402778,10.92138886,4646.4,4646.3,0.0022]
[1755078402940,7.37138886,4646.4,4646.3,0.001]
[1755078403272,7.37138886,4646.4,4646.3,0.0022]
[1755078403974,7.37138886,4646.4,4646.3,0.001]
[1755078404273,7.17,4646.4,4646.3,3.339]
[1755078404439,7.37133717,4646.4,4646.3,3.339]
[1755078404642,7.37133717,4646.4,4646.3,3.3402]
[1755078405039,7.37133717,4646.4,4646.3,0.001]
[1755078405268,7.37133717,4646.4,4646.3,3.339]
[1755078405461,7.37133717,4646.4,4646.3,5.159]
[1755078405772,7.37133717,4646.4,4646.3,8.497]
[1755078406490,7.37133717,4646.4,4646.3,5.159]
[1755078406776,7.92133717,4646.4,4646.3,5.159]
[1755078406944,3.55,4646.3,4645.8,0.001]
[1755078407143,3.55,4646.3,4646.2,8.496]
[1755078407391,4.28872164,4646.3,4646.2,8.496]
[1755078407746,4.98072164,4646.3,4646.2,8.496]
[1755078407979,4.98072164,4646.3,4646.2,5.158]
[1755078407980,5.44436107,4646.3,4646.2,5.158]
[1755078408158,7.65091675,4646.3,4646.2,8.496]
[1755078409154,7.65091675,4646.3,4646.2,5.158]
[1755078409353,7.65091675,4646.3,4646.2,8.495]
[1755078409755,7.65091675,4646.3,4646.2,5.158]
[1755078410074,7.65091675,4646.3,4646.2,8.495]
[1755078410449,7.65093368,4646.3,4646.2,8.495]
[1755078411085,6.06578584,4646.3,4646.2,8.495]
[1755078411292,3.85923016,4646.3,4646.2,8.495]
[1755078411988,3.85923016,4646.3,4646.2,5.158]
[1755078413245,3.85923016,4646.3,4646.2,8.495]
[1755078413489,3.85923016,4646.3,4646.2,5.158]
[1755078413654,3.85923016,4646.3,4645.8,0.001]
[1755078413852,0.75123016,4646.2,4645.8,0.001]
[1755078414049,0.20123016,4646.2,4645.8,0.001]
[1755078414497,0.108,4646.3,4646.1,0.0022]
[1755078415197,0.108,4646.3,4646.2,3.336]
[1755078415357,0.108,4646.3,4646.2,5.158]
[1755078416256,10.0,4647.3,4646.2,5.158]
[1755078416257,0.108,4646.6,4646.2,5.89044253]
[1755078416579,0.108,4646.8,4646.3,0.0012]
[1755078417084,0.108,4646.8,4646.4,3.336]
[1755078417284,0.108,4646.8,4646.3,0.0012]
[1755078417587,0.108,4646.8,4646.4,0.0012]
[1755078417788,0.108,4646.8,4646.2,5.88924253]
[1755078418086,0.108,4646.8,4646.5,0.0012]
[1755078418787,0.108,4646.8,4646.2,5.89044253]
[1755078419199,0.108,4646.8,4646.3,3.335]
[1755078420692,0.108,4646.5,4646.4,3.335]
[1755078420895,0.108,4646.5,4646.2,5.158]
[1755078421313,0.108,4646.5,4646.1,0.001]
[1755078421314,0.108,4646.5,4646.3,5.158]
[1755078421598,0.6559,4646.8,4646.1,0.001]
[1755078421599,0.658,4646.2,4646.1,0.001]
[1755078421766,0.88936,4646.2,4646.1,5.159]
[1755078422115,0.108,4646.2,4646.1,5.158]
[1755078423066,0.108,4646.2,4646.1,8.493]
[1755078425094,0.108,4646.2,4646.1,5.158]
[1755078425263,0.108,4646.2,4646.1,8.492]
[1755078426563,0.55,4647.0,4646.1,8.4932]
[1755078426564,0.108,4646.6,4646.1,8.4932]
[1755078426791,0.108,4646.6,4646.2,0.0012]
[1755078427380,0.108,4646.6,4646.1,9.5675611]
[1755078428193,0.108,4646.6,4646.1,5.158]
[1755078428395,1.1056,4646.5,4646.2,5.158]
[1755078428587,0.2009687,4647.0,4646.3,5.158]
[1755078428588,0.2009687,4646.9,4646.3,5.158]
[1755078428787,0.108,4646.3,4645.9,0.001]
[1755078429011,0.108,4646.3,4646.0,5.158]
[1755078429395,0.108,4646.3,4646.1,5.158]
[1755078429590,0.108,4646.3,4645.9,0.001]
[1755078429907,0.108,4646.3,4646.0,3.333]
[1755078430102,0.108,4646.3,4645.9,0.001]
[1755078431797,0.108,4646.3,4646.0,3.333]
[1755078431999,0.108,4646.3,4645.9,0.001]
[1755078432415,0.6559,4646.2,4645.9,0.001]
[1755078432615,1.1056,4646.2,4645.9,0.001]
[1755078432792,0.108,4646.3,4645.9,0.001]
[1755078433211,0.108,4646.3,4645.9,0.0022]
[1755078433412,0.108,4646.3,4645.9,0.001]
[1755078433714,0.108,4646.6,4646.0,2.2112439]
[1755078434019,0.20101885,4647.0,4646.1,5.48432065]
[1755078434314,0.108,4646.8,4646.1,3.332]
[1755078434620,0.108,4646.8,4646.1,5.48433036]
[1755078435003,0.108,4646.8,4646.1,3.332]
[1755078435209,0.108,4646.8,4646.1,5.48433836]
[1755078435409,0.108,4646.8,4646.2,5.158]
[1755078435587,0.108,4646.8,4646.2,7.31029451]
[1755078435787,0.20101885,4647.1,4646.5,0.108]
[1755078436525,10.0,4647.3,4646.8,2.25997411]
[1755078436706,10.0,4647.3,4646.8,0.108]
[1755078436884,10.0,4647.3,4646.9,3.332]
[1755078436885,0.65064465,4647.2,4646.9,3.332]
[1755078437085,10.0,4647.3,4646.6,0.108]
[1755078437819,10.0,4647.3,4646.6,0.22601252]
[1755078437995,10.0,4647.3,4647.2,2.15183336]
[1755078438201,10.0,4647.3,4647.2,2.25903336]
[1755078438924,10.0,4647.3,4647.2,5.59003336]
[1755078440826,10.0,4647.3,4647.2,3.4382]
[1755078441029,10.0,4647.3,4647.2,0.1072]
[1755078441184,10.0,4647.3,4647.2,3.4382]
[1755078441599,10.002,4647.3,4647.2,5.59003336]
[1755078442292,10.002,4647.3,4647.2,3.4382]
[1755078442512,10.002,4647.3,4647.2,5.58903336]
[1755078442720,10.002,4647.3,4647.2,6.36312853]
[1755078444517,10.002,4647.3,4647.2,6.25592853]
[1755078444698,10.002,4647.3,4647.2,7.00796653]
[1755078447514,10.002,4647.3,4647.2,3.67796653]
[1755078447710,10.002,4647.3,4647.2,7.00696653]
[1755078450903,10.002,4647.3,4647.2,3.67796653]
[1755078451110,10.002,4647.3,4647.2,5.58703336]
[1755078455653,10.002,4647.3,4647.2,15.13301223]
[1755078455806,11.0784,4647.3,4647.2,15.13301223]
[1755078456005,11.0784,4647.3,4647.2,13.50303336]
[1755078456204,10.002,4647.3,4647.2,10.82203336]
[1755078458938,10.4358,4647.3,4647.2,7.49503336]
[1755078459147,11.0784,4647.3,4647.2,10.82203336]
[1755078459843,11.0784,4647.3,4647.2,5.66503336]
[1755078460417,11.0784,4647.3,4647.2,2.33903336]
[1755078460639,11.0784,4647.3,4647.2,5.66503336]
[1755078461034,10.002,4647.3,4647.2,5.66503336]
[1755078461640,11.0784,4647.3,4647.2,5.66503336]